Cogmind - Beta 13 @@@ ROGUE MODE // 2024.04.06 @ 19:42:00 Player: Camoedine Result: Destroyed by L-31 Rogue with Katana Performance ------------- Evolutions (1) 500 Regions Visited (3) 600 Robots Destroyed (12) 60 Value Destroyed (338) 338 Prototype IDs (0) 0 Alien Tech Used (0) 0 Bonus (0) 0 TOTAL SCORE: 1498 Bonus ------- None Cogmind --------- Core Integrity 0/400 Matter 273/300 Energy 89/100 System Corruption 11% Temperature Cool (1) Movement Walking (120) Location -9/Materials Parts ------- > --- POWER (1) -------- (None) > --- PROPULSION (3) --- Aluminum Leg > --- UTILITY (3) ------ Small Storage Unit > --- WEAPON (2) ------- Particle Gun > --- INVENTORY (8) ---- Flight Unit Particle Gun Particle Gun Light Assault Rifle EMP Blaster Peak State ------------ > --- POWER ------------ Light Ion Engine > --- PROPULSION ------- Light Treads Light Treads Improved Treads > --- UTILITY ---------- Cooling System Small Storage Unit Weight Redist. System > --- WEAPON ----------- Particle Gun EMP Blaster > --- INVENTORY -------- Improved Treads Aluminum Leg Aluminum Leg Particle Gun Particle Gun Particle Gun EMP Blaster [Rating: 15] Favorites ----------- Power Light Ion Engine Engine Light Ion Engine Propulsion Light Treads Treads Light Treads Leg Aluminum Leg Flight Unit Flight Unit Utility Small Storage Unit Device Cooling System Storage Small Storage Unit Protection Light Armor Plating Weapon Particle Gun Energy Gun Particle Gun Ballistic Gun Light Assault Rifle Launcher EMP Blaster Build | -11 -10 -10 -9 ------- Run | Yrd Mat Min Mat Slots Evolved 2 | . . . 2 Power . | . . . . Propulsion 1 | . . . 1 Utility 1 | . . . 1 Weapon . | . . . . Parts Attached 27 | 6 3 1 17 Power 5 | 1 . . 4 Engine 5 | 1 . . 4 Core . | . . . . Reactor . | . . . . Propulsion 9 | 2 . . 7 Treads 4 | 2 . . 2 Leg 2 | . . . 2 Wheel . | . . . . Hover . | . . . . Flight 3 | . . . 3 Utility 5 | 1 . 1 3 Device 2 | . . . 2 Storage 1 | 1 . . . Processor . | . . . . Hackware . | . . . . Protection 2 | . . 1 1 Artifact . | . . . . Weapon 8 | 2 3 . 3 Energy Gun 3 | 1 1 . 1 Energy Cannon . | . . . . Ballistic Gun 2 | 1 . . 1 Ballistic Cannon . | . . . . Launcher 3 | . 2 . 1 Special Weapon . | . . . . Impact Weapon . | . . . . Slashing Weapon . | . . . . Piercing Weapon . | . . . . Special Melee Weapon . | . . . . Unidentified Prototypes . | . . . . Parts Lost 15 | . . . 15 Power 3 | . . . 3 Propulsion 6 | . . . 6 Utility 4 | . . . 4 Weapon 2 | . . . 2 Highest Loss Streak 7 | . . . 7 To Critical Strikes . | . . . . Average Slot Usage (%) 86 | . 83 87 86 Engine 11 | . 14 14 10 Treads 25 | . 28 28 25 Flight 1 | . . . 2 Device 11 | . . . 14 Storage 11 | . 14 14 11 Protection 2 | . . 1 2 Energy Gun 11 | . 12 14 10 Ballistic Gun 1 | . 4 . . Launcher 9 | . 9 14 8 Naked Turns . | . . . . Heaviest Build 20 | 10 16 18 20 Greatest Support 69 | 40 40 40 69 Greatest Overweight (x) 3 | 1 . . 3 Average Overweight (x) . | . . . . Largest Inventory Capacity 8 | 8 8 8 8 Average Capacity 7 | 7 8 8 8 Most Carried 8 | 6 8 8 8 Average Carried 6 | 2 6 8 7 Final Capacity 8 | 8 8 8 8 Final Carried 8 | 4 8 8 5 Class Distribution -------------------- 93% | Mutant 6% | Scavenger-Mutant Dominant Class ---------------- Mutant | -10/Materials Mutant | -10/Mines Mutant | -9/Materials Resources | -11 -10 -10 -9 ----------- Run | Yrd Mat Min Mat Matter Collected 486 | 157 87 17 225 Remotely . | . . . . Salvage Created 476 | . 131 . 345 Parts 31 | . 9 . 22 Haulers Intercepted . | . . . . Recyclers Shooed . | . . . . Parts Field Recycled . | . . . . Retrieved Matter . | . . . . Parts Self-Destructed . | . . . . Prevented . | . . . . Kills | -11 -10 -10 -9 ------- Run | Yrd Mat Min Mat Combat Hostiles Destroyed 9 | . 2 . 7 Guns 6 | . 1 . 5 AOE 3 | . 1 . 2 Classes Destroyed 5 | . 2 . 3 Mechanic 2 | . 1 . 1 Watcher 1 | . . . 1 Swarmer 4 | . . . 4 Grunt 2 | . 2 . . Sentry 3 | . . . 3 Best Kill Streak 3 | . 3 . 3 Combat Bots Only 3 | . 2 . 3 Max Kills in Single Turn 2 | . 2 . 1 Gunslinging . | . . . . Exploded 1 | . 1 . 1 Melee . | . . . . Uniques/NPCs Destroyed . | . . . . Combat | -11 -10 -10 -9 -------- Run | Yrd Mat Min Mat Hostile Shots Fired 155 | . 6 3 146 Missed 36 | . 2 1 33 Damage Taken 1823 | . 132 28 1663 Core 470 | . 35 . 435 Absorbed by Shields . | . . . . Core Remaining (%) 93 | 100 . 86 . Volleys Fired 48 | . 4 . 44 Largest 2 | . 2 . 2 Hottest 98 | . 98 . 98 Shots Fired 67 | . 8 . 59 Gun 51 | . 4 . 47 Cannon . | . . . . Launcher 16 | . 4 . 12 Special . | . . . . Kinetic 6 | . . . 6 Thermal 45 | . 4 . 41 Explosive . | . . . . Electromagnetic 16 | . 4 . 12 Robot Hit Streak 8 | . 6 . 8 Robot Miss Streak 4 | . 1 . 4 Penetration Max . | . . . . Secondary Targets . | . . . . Shots Hit Robots 44 | . 6 . 38 Core Hits 18 | . 4 . 14 Critical Kills . | . . . . Critical Parts Destroyed 1 | . . . 1 Critical Strikes 1 | . . . 1 Destroy 1 | . . . 1 Melee Attacks . | . . . . Impact . | . . . . Slashing . | . . . . Piercing . | . . . . Sneak Attacks . | . . . . Combat Hostiles . | . . . . Follow-up Attacks . | . . . . Damage Inflicted 899 | . 142 1 756 Guns 487 | . 47 . 440 Cannons . | . . . . Explosions 404 | . 95 . 309 Melee . | . . . . Ramming 8 | . . 1 7 Kinetic 43 | . . . 43 Thermal 469 | . 47 . 422 Explosive . | . . . . Electromagnetic 379 | . 95 . 284 Impact . | . . . . Slashing . | . . . . Piercing . | . . . . Highest Corruption 11 | . . . 11 Average Corruption 2 | . . . 2 Corruption Purged . | . . . . Corruption Blocked . | . . . . Effects 9 | . . . 9 Matter Fused 2 | . . . 2 Energy Discharges 3 | . . . 3 Data Loss (minor) 1 | . . . 1 Data Loss (major) 1 | . . . 1 Weapon Failures 2 | . . . 2 Overload Shots . | . . . . Overflow Damage 26 | . . . 26 Projectiles . | . . . . Explosions 26 | . . . 26 Melee . | . . . . Knockbacks . | . . . . Impact . | . . . . Kinetic . | . . . . Secondary . | . . . . Self-Inflicted Damage 136 | . 72 . 64 Shots 10 | . 4 . 6 Rammed 2 | . . 1 1 Targets Rammed 2 | . . 1 1 Kicked . | . . . . Crushed . | . . . . Highest Temperature 126 | . 126 . 77 Average Temperature 44 | . 72 . 34 Received Heat Transfer 309 | . 36 15 258 Siege Activations . | . . . . Robots Corrupted . | . . . . Combat Hostiles . | . . . . Parts Fried 1 | . . . 1 Impact Corruptions . | . . . . Robots Melted . | . . . . Combat Hostiles . | . . . . Parts Melted 2 | . . . 2 Heat Transferred 1123 | . 111 . 1012 Parts Sabotaged . | . . . . Parts Stolen . | . . . . Parts Stripped . | . . . . Power Chain Reactions 2 | . 1 . 1 Alert | -11 -10 -10 -9 ------- Run | Yrd Mat Min Mat Peak Influence 138 | . 76 29 138 Initial 29 | . . 29 11 Average 38 | . 24 29 46 Maximum Alert Level . | . . . . Low Security (%) 100 | 100 100 100 100 Level 1 . | . . . . Level 2 . | . . . . Level 3 . | . . . . Level 4 . | . . . . Level 5 . | . . . . High Security . | . . . . Max Security . | . . . . Squads Dispatched . | . . . . Investigation . | . . . . Extermination . | . . . . Reinforcement . | . . . . Assault . | . . . . Garrison . | . . . . Intercept . | . . . . Searches Triggered . | . . . . Construction Impeded . | . . . . Haulers Reinforced . | . . . . Active Scanning Responses . | . . . . Cargo Convoy Interrupts . | . . . . Stealth | -11 -10 -10 -9 --------- Run | Yrd Mat Min Mat Distress Signals . | . . . . Communications Jammed . | . . . . Distress Signals . | . . . . Times Spotted 19 | . 2 2 15 Peak Tracking Total 4 | . 2 2 4 Tactical Retreats . | . . . . Traps | -11 -10 -10 -9 ------- Run | Yrd Mat Min Mat Traps Triggered 1 | . . . 1 Indirectly . | . . . . Trap Hack Attempts . | . . . . Triggered . | . . . . Disarmed . | . . . . Reprogrammed . | . . . . Reused . | . . . . Traps Extracted . | . . . . Installed . | . . . . Triggered . | . . . . Machines | -11 -10 -10 -9 ---------- Run | Yrd Mat Min Mat Machines Disabled 4 | . 1 . 3 Max in Single Turn 1 | . 1 . 1 Machines Repaired . | . . . . Machines Dismantled . | . . . . Machines Sabotaged . | . . . . Overloaded Fab Kills . | . . . . Hacking | -11 -10 -10 -9 --------- Run | Yrd Mat Min Mat Machines Accessed . | . . . . Terminals . | . . . . Fabricators . | . . . . Repair Stations . | . . . . Recycling Units . | . . . . Scanalyzers . | . . . . Garrison Access . | . . . . Total Hacks . | . . . . Successful . | . . . . Failed . | . . . . Catastrophic . | . . . . Database Lockouts . | . . . . Manual . | . . . . Terminals . | . . . . Fabricators . | . . . . Repair Stations . | . . . . Recycling Units . | . . . . Scanalyzers . | . . . . Garrison Access . | . . . . Terminal Hacks . | . . . . Fabricator Hacks . | . . . . Repair Station Hacks . | . . . . Recycling Unit Hacks . | . . . . Scanalyzer . | . . . . Garrison Access Hacks . | . . . . Unauthorized Hacks . | . . . . Terminals . | . . . . Fabricators . | . . . . Repair Stations . | . . . . Recycling Units . | . . . . Scanalyzers . | . . . . Garrison Access . | . . . . Data Cores Recovered . | . . . . Used . | . . . . Hacking Detections . | . . . . Full Trace Events . | . . . . Feedback Events . | . . . . Feedback Blocked . | . . . . Robot Schematics Acquired . | . . . . Robots Built . | . . . . Authchips . | . . . . Time . | . . . . Total Robot Build Rating . | . . . . Part Schematics Acquired . | . . . . Parts Built . | . . . . Authchips . | . . . . Time . | . . . . Total Part Build Rating . | . . . . Parts Repaired . | . . . . Time . | . . . . Parts Recycled . | . . . . Recycled Matter . | . . . . Retrieved Matter . | . . . . Retrieved Components . | . . . . Parts Scanalyzed . | . . . . Part Schematics Acquired . | . . . . Parts Damaged . | . . . . Bothacking | -11 -10 -10 -9 ------------ Run | Yrd Mat Min Mat Used RIF Installer . | . . . . Robots Hacked . | . . . . Non-combat . | . . . . Combat . | . . . . Robot Hacks Applied . | . . . . Relay Couplers Released . | . . . . Fabnet Peak Effective % . | . . . . Robots Rewired . | . . . . Allies Hacked . | . . . . Hacks Repelled . | . . . . Allies | -11 -10 -10 -9 -------- Run | Yrd Mat Min Mat Total Allies . | . . . . Largest Group . | . . . . Highest-Rated Group . | . . . . Highest-Rated Ally . | . . . . Total Orders . | . . . . Ally Attacks . | . . . . Total Damage . | . . . . Kills . | . . . . Allies Corrupted . | . . . . Allies Melted . | . . . . Intel | -11 -10 -10 -9 ------- Run | Yrd Mat Min Mat Robot Analysis Total . | . . . . Derelict Logs Recovered . | . . . . Drone Launches . | . . . . Drone Recoveries . | . . . . Exploration | -11 -10 -10 -9 ------------- Run | Yrd Mat Min Mat Turns Passed 1160 | 87 128 152 793 Spaces Moved 522 | 46 64 94 318 Core 14 | 2 . . 12 Treads 488 | 44 64 94 286 Legs . | . . . . Wheels . | . . . . Hover . | . . . . Flight 20 | . . . 20 Fastest Speed 34 | 50 160 160 34 Average Speed 153 | 156 160 160 150 Slowest Speed 200 | 160 160 160 200 Overloaded Moves . | . . . . Propulsion Burnouts . | . . . . Robots Hopped . | . . . . Cave-ins Triggered 1 | . . . 1 Exploration Rate (%) 19 | 4 15 36 23 Regions Visited 3 Branch Regions 1 Pre-discovered Areas . | . . . . Known Exits Taken . | . . . . Unknown Exits Taken 3 | 1 1 1 . Scrap Searched 1 | . . 1 . Spaces Dug . | . . . . Terrain Destroyed 11 | . 6 . 5 Melee . | . . . . Projectile . | . . . . AOE 11 | . 6 . 5 Terrain Rammed . | . . . . Walls Destroyed . | . . . . Machines Disabled . | . . . . Actions | -11 -10 -10 -9 --------- Run | Yrd Mat Min Mat Total 809 | 61 82 95 571 Wait 182 | . 4 . 178 Move 519 | 45 63 93 318 Hop . | . . . . Pick Up 25 | 10 5 . 10 Fast Attach 7 | . 2 1 4 Attach 16 | 6 . . 10 Detach . | . . . . Swap 4 | . 1 . 3 Drop 6 | . 3 . 3 Fire 48 | . 4 . 44 Melee . | . . . . Ram . | . . . . Kick . | . . . . Crush 2 | . . 1 1 Escape Stasis . | . . . . Rewire . | . . . . Trap . | . . . . Miscellaneous . | . . . . Route ------- -11/Scrapyard -10/Materials -10/Mines -9/Materials History --------- Turn | Location | Event 12 | -11/Scrapyard | Discovered new exit (range 15) 88 | -11/Scrapyard | Entered Materials 163 | -10/Materials | Discovered new exit (range 9) 216 | -10/Materials | Entered Mines 308 | -10/Mines | Build established: Mutant 356 | -10/Mines | Discovered new exit (range 9) 368 | -10/Mines | Entered Materials 368 | -9/Materials | Evolved 2 slots: Propulsion x1, Utility x1 1092 | -9/Materials | Lost 5 parts (1p2n1u1w) 1120 | -9/Materials | Core integrity fell below 50% 1134 | -9/Materials | Crushed by falling debris 1134 | -9/Materials | System corruption reached 10% 1147 | -9/Materials | Core integrity fell below 20% 1161 | -9/Materials | Destroyed by L-31 Rogue with Katana Last Messages --------------- 01144_ K-01 Serf collects debris. 01145_ U-05 Engineer lays Concrete. 01145_ G-34 Mercenary destroyed. 01146_ Lgt. Ion Engine severed. 01146_ U-05 Engineer lays Concrete. 01147_ K-01 Serf collects debris. 01147_ U-05 Engineer lays Concrete. 01151_ System corrupted: Energy discharge (-31). 01151_ System corrupted: Particle Gun failed to cycle. 01151_ K-01 Serf collects debris. 01151_ U-05 Engineer lays Concrete. 01153_ U-05 Engineer builds a Wall. 01153_ U-05 Engineer lays Concrete. 01156_ K-01 Serf collects debris. 01156_ U-05 Engineer lays Concrete. 01159_ K-01 Serf collects debris. 01159_ System corrupted: Particle Gun failed to cycle. 01159_ U-05 Engineer lays Concrete. 01160_ K-01 Serf collects debris. 01160_ U-05 Engineer builds a Wall. Map ----- +----------------------------------------------------+ | #????????????????????????????????????????????????? | | #????????????????????????????????????????????????? | | #????????????????????????????????????????????????? | | ?????????????????????????????????????????????????? | | ?????????????????????????????????????????????????? | | ?????????????????????????????????????????????????? | | ?????????????????????????????????????????????????? | | ?????????????????????????????????????????????????? | | #?????????????????????????????? ????????????????? | | #????????????###?????????????? ????????????????? | | #????????????? ???????????? ????????????????? | | #?????????????? ??????????? ???????????????? | | #????????####### ########### ???????????????? | | #????????# ???????????????? | | #????????# ?????????????????? | | #????????# """ ???????????????????? | | #????????+ """ ??????????????????????? | | #????????# """ != #????????????????????????? | | #????????# ! #????????????????????????? | | #???????## % ########?????????????????? | | #???????# """ # % #?????????????????? | | #???????# """ # """ #?????????????????? | | ????????# """ # """ #?????????????????? | | ????????# # """ #?????????????????? | | ????????# + #?????????????????? | | ????????# ! u =*@ #?????????????????? | | ######### %k % g%l#######?????????????????? | | ## * k#### #???????????????? | | ## #???????????????? | | ## !%= #???????????????? | | ######### ## #u * #???????????????? | | ## # #### #???????????????? | | ###########/####### ???# ##???????????????? | | #????????? ????# """???? #????????????????? | | #???????? ???# """????? #????????????????? | | ####???? """ ??# """?????? + ???????????????? | | #???? """ #?# ???????# ??????????????? | | #???# """ #?# ???????????? ?????????????? | | ! #???# """ """#?# ????????????? ?????????????? | | ! #???# ?"" R"#?# ????????????????????????????? | | #???#???? """#?# ????????????????????????????? | | #???????? ????#?????????????????????????????? | | #????????##???????????????????????????????????? | | ####?????????????????????????????????????????????? | | | | | | | | | | | | | +----------------------------------------------------+ Best States ------------- Heat Dissipation 50 Energy Generation 10 Energy Capacity 125 Matter Stores 300 Matter Capacity 300 Sight Range 16 Terrain Scan Density 10 Additional Mass Support 6 Armor Coverage 150 Evasion (%) 50 Recoil Reduction 3 Item Schematics ----------------- None Robot Schematics ------------------ None Fabricated ------------ Nothing Alien Tech Used ----------------- None Achievements -------------- None Challenges ------------ None Game ------ Seed SiegeExoskeletonStabilizer Manual? 0 Play Time 00:12:46 Cumulative 8.7 hours Start 2024.04.06 @ 19:30:29 End 2024.04.06 @ 19:42:00 Sessions 1 Manual Loads 0 Difficulty Rogue Special Mode None Game No. 16 Rogue 16 Adventurer 0 Explorer 0 Win Type - Total 0 Types 0/0/0/0/0/0/0/0/0 Lore% 4 Gallery% 12 Achievement% 13 Wizard Run 0 Options --------- Layout 0 ASCII 0 Keyboard 0 Movement Mouse Keybinds 0 Fullscreen 2 Font 24/X11 Map View 76x50 Zoom Use 0% Tactical HUD 1 Map Filters NONE Filters NONE Steam 1 RUN: 4803c079-770d-4c14-bb9a-35f26f4d1e4c